[Event "Paul Keres Memorial Festival 2022"]
[Site "Pärnu, Estonia Resort Hotel & Spa"]
[Date "2022.07.22"]
[Round "8.8"]
[White "Õim, Mikk Kaarel"]
[Black "Medar, Marti"]
[Result "0-1"]
[TimeControl "60 min for 30 moves + 30 min until game end, from first move every move 30 sec time increment"]
[WhiteFideId "4514815"]
[BlackFideId "4501870"]
[WhiteElo "1297"]
[BlackElo "2066"]

1. e4 {[%clk 01:00:59]} {[%emt 00:14:55]} e6 {[%clk 01:00:52]} {[%emt
00:00:08]} 2. d4 {[%clk 01:01:20]} {[%emt 00:00:10]} b6 {[%clk 01:01:19]}
{[%emt 00:00:02]} 3. c4 {[%clk 01:01:00]} {[%emt 00:00:50]} Bb7 {[%clk
01:01:44]} {[%emt 00:00:05]} 4. Bd3 {[%clk 01:00:41]} {[%emt 00:00:48]} d6
{[%clk 01:01:49]} {[%emt 00:00:25]} 5. Nc3 {[%clk 01:00:30]} {[%emt 00:00:41]}
Nd7 {[%clk 01:02:14]} {[%emt 00:00:05]} 6. Nf3 {[%clk 00:59:54]} {[%emt
00:01:05]} g6 {[%clk 01:02:15]} {[%emt 00:00:29]} 7. Be3 {[%clk 00:59:32]}
{[%emt 00:00:51]} Bg7 {[%clk 01:02:40]} {[%emt 00:00:06]} 8. Qd2 {[%clk
00:56:46]} {[%emt 00:03:16]} h6 {[%clk 01:02:56]} {[%emt 00:00:14]} 9. d5
{[%clk 00:55:14]} {[%emt 00:02:02]} e5 {[%clk 01:03:13]} {[%emt 00:00:14]} 10.
h3 {[%clk 00:43:37]} {[%emt 00:12:06]} Ne7 {[%clk 01:03:08]} {[%emt 00:00:35]}
11. O-O {[%clk 00:41:05]} {[%emt 00:03:02]} f5 {[%clk 01:01:18]} {[%emt
00:02:19]} 12. g3 {[%clk 00:41:15]} {[%emt 00:00:21]} Nf6 {[%clk 01:00:39]}
{[%emt 00:01:09]} 13. b4 {[%clk 00:30:28]} {[%emt 00:11:17]} Bc8 {[%clk
00:59:53]} {[%emt 00:01:16]} 14. Kh2 {[%clk 00:29:30]} {[%emt 00:01:28]} Nh5
{[%clk 00:53:34]} {[%emt 00:06:50]} 15. Rg1 {[%clk 00:24:57]} {[%emt 00:05:03]}
f4 {[%clk 00:52:41]} {[%emt 00:01:22]} 16. gxf4 {[%clk 00:25:19]} {[%emt
00:00:08]} Nxf4 {[%clk 00:52:44]} {[%emt 00:00:27]} 17. Bxf4 {[%clk 00:24:04]}
{[%emt 00:01:44]} exf4 {[%clk 00:53:08]} {[%emt 00:00:07]} 18. e5 {[%clk
00:22:27]} {[%emt 00:02:07]} g5 {[%clk 00:46:42]} {[%emt 00:06:56]} 19. e6
{[%clk 00:20:21]} {[%emt 00:02:36]} Bf6 {[%clk 00:29:19]} {[%emt 00:17:52]} 20.
b5 {[%clk 00:15:37]} {[%emt 00:05:14]} a6 {[%clk 00:29:12]} {[%emt 00:00:38]}
21. Be4 {[%clk 00:14:27]} {[%emt 00:01:40]} axb5 {[%clk 00:26:57]} {[%emt
00:02:45]} 22. cxb5 {[%clk 00:14:09]} {[%emt 00:00:48]} Ra3 {[%clk 00:26:00]}
{[%emt 00:01:26]} 23. Rac1 {[%clk 00:13:15]} {[%emt 00:01:24]} Bb7 {[%clk
00:25:31]} {[%emt 00:00:58]} 24. Nb1 {[%clk 00:08:19]} {[%emt 00:05:26]} Ra5
{[%clk 00:21:06]} {[%emt 00:04:55]} 25. Nc3 {[%clk 00:06:37]} {[%emt 00:02:12]}
Rg8 {[%clk 00:20:16]} {[%emt 00:01:20]} 26. Nd4 {[%clk 00:04:40]} {[%emt
00:02:27]} h5 {[%clk 00:17:18]} {[%emt 00:03:28]} 27. f3 {[%clk 00:01:24]}
{[%emt 00:03:46]} Qa8 {[%clk 00:16:24]} {[%emt 00:01:24]} 28. Nde2 {[%clk
00:00:51]} {[%emt 00:01:03]} Ra3 {[%clk 00:15:47]} {[%emt 00:01:06]} 29. Kh1
{[%clk 00:00:40]} {[%emt 00:00:41]} Qa5 {[%clk 00:12:37]} {[%emt 00:03:40]} 30.
Rgd1 {[%clk 00:30:32]} {[%emt 00:00:37]} Qa8 {[%clk 00:31:36]} {[%emt
00:11:30]} 31. Rc2 {[%clk 00:26:00]} {[%emt 00:05:02]} Ra7 {[%clk 00:26:57]}
{[%emt 00:05:10]} 32. Rg1 {[%clk 00:19:47]} {[%emt 00:06:42]} Rf8 {[%clk
00:24:39]} {[%emt 00:02:47]} 33. Rgc1 {[%clk 00:15:27]} {[%emt 00:04:50]} Qd8
{[%clk 00:18:37]} {[%emt 00:06:32]} 34. Bh7 {[%clk 00:12:04]} {[%emt 00:03:53]}
Rh8 {[%clk 00:16:45]} {[%emt 00:02:22]} 35. Qd3 {[%clk 00:09:53]} {[%emt
00:02:42]} Ra3 {[%clk 00:13:42]} {[%emt 00:03:33]} 36. Bg6+ {[%clk 00:09:02]}
{[%emt 00:01:21]} Kf8 {[%clk 00:12:51]} {[%emt 00:01:21]} 37. Be4 {[%clk
00:09:27]} {[%emt 00:00:05]} Be5 {[%clk 00:12:15]} {[%emt 00:01:06]} 38. Qd2
{[%clk 00:08:57]} {[%emt 00:01:01]} Ra7 {[%clk 00:12:14]} {[%emt 00:00:31]} 39.
Rg1 {[%clk 00:08:01]} {[%emt 00:01:26]} Ng8 {[%clk 00:11:28]} {[%emt 00:01:16]}
40. Nd4 {[%clk 00:01:58]} {[%emt 00:06:33]} Qf6 {[%clk 00:09:35]} {[%emt
00:02:23]} 41. Nce2 {[%clk 00:01:20]} {[%emt 00:01:07]} Ba8 {[%clk 00:04:53]}
{[%emt 00:05:12]} 42. Nf5 {[%clk 00:00:35]} {[%emt 00:01:15]} Nh6 {[%clk
00:04:25]} {[%emt 00:00:59]} 43. Nxh6 {[%clk 00:00:38]} {[%emt 00:00:27]} Rxh6
{[%clk 00:04:41]} {[%emt 00:00:14]} 44. Nc1 {[%clk 00:00:37]} {[%emt 00:00:31]}
g4 {[%clk 00:04:17]} {[%emt 00:00:54]} 45. Nd3 {[%clk 00:00:35]} {[%emt
00:00:32]} Bd4 {[%clk 00:02:06]} {[%emt 00:02:40]} 46. Rg2 {[%clk 00:00:32]}
{[%emt 00:00:33]} Be3 {[%clk 00:01:50]} {[%emt 00:00:46]} 47. Qc3 {[%clk
00:00:35]} {[%emt 00:00:27]} Qh4 {[%clk 00:01:27]} {[%emt 00:00:53]} 48. Qe1
{[%clk 00:00:35]} {[%emt 00:00:30]} g3 {[%clk 00:00:41]} {[%emt 00:01:16]} 49.
Bf5 {[%clk 00:00:32]} {[%emt 00:00:32]} Bxd5 {[%clk 00:00:45]} {[%emt
00:00:26]} 50. e7+ {[%clk 00:00:32]} {[%emt 00:00:30]} Qxe7 {[%clk 00:00:43]}
{[%emt 00:00:32]} 51. Qe2 {[%clk 00:00:31]} {[%emt 00:00:30]} Be6 {[%clk
00:00:44]} {[%emt 00:00:29]} 0-1

[Event "Paul Keres Memorial Festival 2022"]
[Site "Pärnu, Estonia Resort Hotel & Spa"]
[Date "2022.07.22"]
[Round "9.1"]
[White "Kantans, Toms"]
[Black "Olde, Margareth"]
[Result "1-0"]
[TimeControl "60 min for 30 moves + 30 min until game end, from first move every move 30 sec time increment"]
[WhiteTitle "GM"]
[BlackTitle "WIM"]
[WhiteFideId "11602945"]
[BlackFideId "4503082"]
[WhiteElo "2486"]
[BlackElo "2235"]

1. e4 {[%clk 00:58:08]} {[%emt 00:02:51]} e5 {[%clk 01:00:53]} {[%emt
00:00:08]} 2. Nf3 {[%clk 00:58:31]} {[%emt 00:00:06]} Nc6 {[%clk 01:01:18]}
{[%emt 00:00:05]} 3. Bb5 {[%clk 00:57:21]} {[%emt 00:01:40]} a6 {[%clk
01:01:40]} {[%emt 00:00:09]} 4. Ba4 {[%clk 00:57:47]} {[%emt 00:00:04]} Nf6
{[%clk 01:01:58]} {[%emt 00:00:11]} 5. O-O {[%clk 00:58:11]} {[%emt 00:00:06]}
Be7 {[%clk 01:02:13]} {[%emt 00:00:15]} 6. Re1 {[%clk 00:58:33]} {[%emt
00:00:08]} b5 {[%clk 01:02:23]} {[%emt 00:00:20]} 7. Bb3 {[%clk 00:58:58]}
{[%emt 00:00:05]} d6 {[%clk 01:02:19]} {[%emt 00:00:34]} 8. c3 {[%clk
00:59:22]} {[%emt 00:00:06]} O-O {[%clk 01:02:35]} {[%emt 00:00:14]} 9. d4
{[%clk 00:59:46]} {[%emt 00:00:06]} Bg4 {[%clk 01:02:02]} {[%emt 00:01:02]} 10.
Be3 {[%clk 01:00:10]} {[%emt 00:00:06]} exd4 {[%clk 00:55:34]} {[%emt
00:06:59]} 11. cxd4 {[%clk 00:59:15]} {[%emt 00:01:25]} Na5 {[%clk 00:55:50]}
{[%emt 00:00:14]} 12. Bc2 {[%clk 00:59:38]} {[%emt 00:00:07]} Nc4 {[%clk
00:55:53]} {[%emt 00:00:27]} 13. Bc1 {[%clk 01:00:02]} {[%emt 00:00:06]} c5
{[%clk 00:42:59]} {[%emt 00:13:24]} 14. b3 {[%clk 01:00:10]} {[%emt 00:00:22]}
Nb6 {[%clk 00:42:53]} {[%emt 00:00:36]} 15. Nbd2 {[%clk 01:00:31]} {[%emt
00:00:10]} Bc8 {[%clk 00:37:23]} {[%emt 00:06:00]} 16. Bb2 {[%clk 00:56:10]}
{[%emt 00:04:50]} Bb7 {[%clk 00:37:27]} {[%emt 00:00:26]} 17. Qe2 {[%clk
00:54:15]} {[%emt 00:02:25]} Re8 {[%clk 00:34:15]} {[%emt 00:03:43]} 18. a4
{[%clk 00:50:18]} {[%emt 00:04:27]} cxd4 {[%clk 00:27:55]} {[%emt 00:06:50]} 19.
axb5 {[%clk 00:48:15]} {[%emt 00:02:34]} axb5 {[%clk 00:18:41]} {[%emt
00:09:42]} 20. Qxb5 {[%clk 00:47:51]} {[%emt 00:00:56]} Qc7 {[%clk 00:14:41]}
{[%emt 00:04:30]} 21. Nxd4 {[%clk 00:47:29]} {[%emt 00:00:52]} Nbd7 {[%clk
00:14:45]} {[%emt 00:00:26]} 22. Rxa8 {[%clk 00:36:59]} {[%emt 00:11:01]} Rxa8
{[%clk 00:14:18]} {[%emt 00:00:58]} 23. Nc4 {[%clk 00:35:44]} {[%emt 00:01:45]}
Ne5 {[%clk 00:11:22]} {[%emt 00:03:24]} 24. Nf5 {[%clk 00:30:52]} {[%emt
00:05:23]} Nxc4 {[%clk 00:07:13]} {[%emt 00:04:40]} 25. Qxc4 {[%clk 00:31:08]}
{[%emt 00:00:14]} Qxc4 {[%clk 00:06:26]} {[%emt 00:01:17]} 26. bxc4 {[%clk
00:30:37]} {[%emt 00:01:01]} Kf8 {[%clk 00:06:10]} {[%emt 00:00:47]} 27. e5
{[%clk 00:29:09]} {[%emt 00:01:58]} dxe5 {[%clk 00:01:40]} {[%emt 00:05:00]} 28.
Nxe7 {[%clk 00:29:09]} {[%emt 00:00:30]} Ra2 {[%clk 00:00:53]} {[%emt
00:01:17]} 29. Rb1 {[%clk 00:25:27]} {[%emt 00:04:12]} Kxe7 {[%clk 00:01:16]}
{[%emt 00:00:07]} 30. Bb3 {[%clk 00:55:53]} {[%emt 00:00:04]} Ra8 {[%clk
00:30:46]} {[%emt 00:01:00]} 31. Bxe5 {[%clk 00:56:16]} {[%emt 00:00:07]} Ne4
{[%clk 00:28:45]} {[%emt 00:02:31]} 32. Bc2 {[%clk 00:51:54]} {[%emt 00:04:52]}
Ke6 {[%clk 00:27:48]} {[%emt 00:01:27]} 33. Rxb7 {[%clk 00:50:21]} {[%emt
00:02:03]} Kxe5 {[%clk 00:28:11]} {[%emt 00:00:07]} 34. Bxe4 {[%clk 00:50:48]}
{[%emt 00:00:04]} Kxe4 {[%clk 00:28:14]} {[%emt 00:00:28]} 35. f3+ {[%clk
00:51:12]} {[%emt 00:00:06]} Kd4 {[%clk 00:28:25]} {[%emt 00:00:19]} 36. Rxf7
{[%clk 00:51:31]} {[%emt 00:00:11]} Rg8 {[%clk 00:28:43]} {[%emt 00:00:11]} 37.
Rc7 {[%clk 00:51:53]} {[%emt 00:00:08]} h5 {[%clk 00:28:45]} {[%emt 00:00:28]}
38. h4 {[%clk 00:51:45]} {[%emt 00:00:37]} g5 {[%clk 00:28:48]} {[%emt
00:00:28]} 39. hxg5 {[%clk 00:52:09]} {[%emt 00:00:07]} Rxg5 {[%clk 00:29:14]}
{[%emt 00:00:04]} 40. Kf2 {[%clk 00:52:21]} {[%emt 00:00:18]} Ra5 {[%clk
00:28:43]} {[%emt 00:01:01]} 41. c5 {[%clk 00:51:55]} {[%emt 00:00:56]} h4
{[%clk 00:28:56]} {[%emt 00:00:16]} 42. Rh7 {[%clk 00:52:11]} {[%emt 00:00:14]}
Ra2+ {[%clk 00:29:22]} {[%emt 00:00:05]} 43. Kg1 {[%clk 00:52:35]} {[%emt
00:00:06]} h3 {[%clk 00:28:57]} {[%emt 00:00:55]} 44. Rxh3 {[%clk 00:53:00]}
{[%emt 00:00:05]} Kxc5 {[%clk 00:29:24]} {[%emt 00:00:02]} 45. Rh8 {[%clk
00:53:09]} {[%emt 00:00:21]} Kd5 {[%clk 00:29:47]} {[%emt 00:00:08]} 46. Re8
{[%clk 00:53:33]} {[%emt 00:00:05]} 1-0

[Event "Paul Keres Memorial Festival 2022"]
[Site "Pärnu, Estonia Resort Hotel & Spa"]
[Date "2022.07.22"]
[Round "9.2"]
[White "Sulskis, Sarunas"]
[Black "Maiorov, Nikita"]
[Result "1/2-1/2"]
[TimeControl "60 min for 30 moves + 30 min until game end, from first move every move 30 sec time increment"]
[WhiteTitle "GM"]
[BlackTitle "GM"]
[WhiteFideId "12800112"]
[BlackFideId "13501720"]
[WhiteElo "2481"]
[BlackElo "2474"]

1. e4 {[%clk 01:00:54]} {[%emt 00:00:05]} e5 {[%clk 01:00:47]} {[%emt
00:00:13]} 2. Nf3 {[%clk 01:01:12]} {[%emt 00:00:12]} Nc6 {[%clk 01:01:12]}
{[%emt 00:00:06]} 3. Bb5 {[%clk 01:01:22]} {[%emt 00:00:20]} Nf6 {[%clk
01:01:36]} {[%emt 00:00:05]} 4. d3 {[%clk 00:59:09]} {[%emt 00:02:43]} Bc5
{[%clk 01:01:47]} {[%emt 00:00:20]} 5. Be3 {[%clk 00:54:13]} {[%emt 00:05:26]}
Bxe3 {[%clk 00:59:40]} {[%emt 00:02:37]} 6. fxe3 {[%clk 00:54:36]} {[%emt
00:00:08]} d6 {[%clk 00:59:53]} {[%emt 00:00:17]} 7. O-O {[%clk 00:52:15]}
{[%emt 00:02:51]} O-O {[%clk 00:59:24]} {[%emt 00:00:59]} 8. Bxc6 {[%clk
00:50:15]} {[%emt 00:02:30]} bxc6 {[%clk 00:59:48]} {[%emt 00:00:04]} 9. Qe1
{[%clk 00:48:29]} {[%emt 00:02:17]} c5 {[%clk 00:58:00]} {[%emt 00:02:18]} 10.
Nbd2 {[%clk 00:48:04]} {[%emt 00:00:54]} Rb8 {[%clk 00:57:30]} {[%emt
00:01:01]} 11. b3 {[%clk 00:46:50]} {[%emt 00:01:45]} Ng4 {[%clk 00:48:34]}
{[%emt 00:09:26]} 12. h3 {[%clk 00:43:16]} {[%emt 00:04:04]} Nh6 {[%clk
00:48:58]} {[%emt 00:00:05]} 13. d4 {[%clk 00:43:11]} {[%emt 00:00:35]} cxd4
{[%clk 00:49:19]} {[%emt 00:00:09]} 14. exd4 {[%clk 00:43:36]} {[%emt
00:00:05]} f6 {[%clk 00:48:30]} {[%emt 00:01:19]} 15. Qe3 {[%clk 00:39:57]}
{[%emt 00:04:09]} Ra8 {[%clk 00:46:45]} {[%emt 00:02:15]} 16. dxe5 {[%clk
00:36:22]} {[%emt 00:04:06]} dxe5 {[%clk 00:45:33]} {[%emt 00:01:43]} 17. b4
{[%clk 00:30:33]} {[%emt 00:06:18]} Qe7 {[%clk 00:42:14]} {[%emt 00:03:48]} 18.
Qc3 {[%clk 00:29:06]} {[%emt 00:01:57]} Nf7 {[%clk 00:35:37]} {[%emt 00:07:07]}
19. Nb3 {[%clk 00:28:30]} {[%emt 00:01:06]} Nd6 {[%clk 00:31:02]} {[%emt
00:05:05]} 20. a4 {[%clk 00:27:23]} {[%emt 00:01:37]} Nb7 {[%clk 00:27:30]}
{[%emt 00:04:02]} 21. a5 {[%clk 00:24:35]} {[%emt 00:03:18]} a6 {[%clk
00:27:15]} {[%emt 00:00:46]} 22. Ne1 {[%clk 00:20:18]} {[%emt 00:04:47]} Be6
{[%clk 00:26:33]} {[%emt 00:01:12]} 23. Nd3 {[%clk 00:20:24]} {[%emt 00:00:24]}
Nd6 {[%clk 00:20:36]} {[%emt 00:06:28]} 24. Ndc5 {[%clk 00:19:56]} {[%emt
00:00:58]} Nb5 {[%clk 00:20:40]} {[%emt 00:00:26]} 25. Qe3 {[%clk 00:19:44]}
{[%emt 00:00:42]} Bc4 {[%clk 00:19:32]} {[%emt 00:01:38]} 26. Rfd1 {[%clk
00:17:36]} {[%emt 00:02:38]} Nd6 {[%clk 00:14:30]} {[%emt 00:05:32]} 27. Nd2
{[%clk 00:14:18]} {[%emt 00:03:48]} Bf7 {[%clk 00:12:15]} {[%emt 00:02:46]} 28.
c4 {[%clk 00:07:46]} {[%emt 00:07:02]} Qe8 {[%clk 00:11:44]} {[%emt 00:01:00]}
29. Rdc1 {[%clk 00:07:13]} {[%emt 00:01:04]} Qc6 {[%clk 00:11:15]} {[%emt
00:00:59]} 30. Kh2 {[%clk 00:36:59]} {[%emt 00:00:43]} Rfd8 {[%clk 00:39:29]}
{[%emt 00:02:15]} 31. Rab1 {[%clk 00:36:22]} {[%emt 00:01:07]} Qe8 {[%clk
00:37:11]} {[%emt 00:02:49]} 32. Qe2 {[%clk 00:34:54]} {[%emt 00:01:58]} Kh8
{[%clk 00:36:07]} {[%emt 00:01:34]} 33. Rc3 {[%clk 00:34:56]} {[%emt 00:00:28]}
Qc6 {[%clk 00:34:09]} {[%emt 00:02:28]} 34. Qe3 {[%clk 00:33:45]} {[%emt
00:01:40]} Qe8 {[%clk 00:34:13]} {[%emt 00:00:26]} 35. Qe2 {[%clk 00:33:49]}
{[%emt 00:00:26]} Qc6 {[%clk 00:34:22]} {[%emt 00:00:21]} 36. Qe3 {[%clk
00:31:28]} {[%emt 00:02:50]} Qe8 {[%clk 00:29:23]} {[%emt 00:11:22]} 37. Qf2
{[%clk 00:31:17]} {[%emt 00:00:41]} Qg8 {[%clk 00:28:11]} {[%emt 00:01:43]} 38.
Qe2 {[%clk 00:30:48]} {[%emt 00:00:59]} Qe8 {[%clk 00:28:09]} {[%emt 00:00:32]}
39. Rcc1 {[%clk 00:30:45]} {[%emt 00:00:34]} Qc6 {[%clk 00:28:18]} {[%emt
00:00:21]} 40. Qe3 {[%clk 00:30:09]} {[%emt 00:01:06]} Qe8 {[%clk 00:27:53]}
{[%emt 00:00:54]} 41. Qe2 {[%clk 00:30:16]} {[%emt 00:00:23]} Qc6 {[%clk
00:27:44]} {[%emt 00:00:39]} 42. Qe3 {[%emt 00:00:36]} 1/2-1/2

[Event "Paul Keres Memorial Festival 2022"]
[Site "Pärnu, Estonia Resort Hotel & Spa"]
[Date "2022.07.22"]
[Round "9.3"]
[White "Smirnov, Artem"]
[Black "Rondo, Mikko"]
[Result "1-0"]
[TimeControl "60 min for 30 moves + 30 min until game end, from first move every move 30 sec time increment"]
[WhiteTitle "IM"]
[WhiteFideId "4143256"]
[BlackFideId "4509633"]
[WhiteElo "2419"]
[BlackElo "1579"]

1. d4 {[%clk 01:00:56]} {[%emt 00:00:04]} Nf6 {[%clk 01:00:28]} {[%emt
00:00:32]} 2. c4 {[%clk 01:01:19]} {[%emt 00:00:08]} e6 {[%clk 01:00:54]}
{[%emt 00:00:04]} 3. Nc3 {[%clk 01:01:09]} {[%emt 00:00:39]} d5 {[%clk
01:00:12]} {[%emt 00:01:12]} 4. cxd5 {[%clk 01:01:31]} {[%emt 00:00:08]} exd5
{[%clk 01:00:32]} {[%emt 00:00:10]} 5. Bg5 {[%clk 01:01:56]} {[%emt 00:00:05]}
Be7 {[%clk 00:59:50]} {[%emt 00:01:12]} 6. e3 {[%clk 01:02:18]} {[%emt
00:00:08]} h6 {[%clk 00:59:06]} {[%emt 00:01:15]} 7. Bh4 {[%clk 01:00:37]}
{[%emt 00:02:10]} c6 {[%clk 00:57:00]} {[%emt 00:02:36]} 8. Bd3 {[%clk
01:00:47]} {[%emt 00:00:20]} Ne4 {[%clk 00:56:31]} {[%emt 00:00:59]} 9. Bg3
{[%clk 00:54:26]} {[%emt 00:06:50]} Nxg3 {[%clk 00:56:00]} {[%emt 00:01:01]} 10.
hxg3 {[%clk 00:54:50]} {[%emt 00:00:06]} Bb4 {[%clk 00:55:57]} {[%emt
00:00:34]} 11. Nge2 {[%clk 00:49:57]} {[%emt 00:05:23]} Nd7 {[%clk 00:53:36]}
{[%emt 00:02:50]} 12. a3 {[%clk 00:38:03]} {[%emt 00:12:24]} Bxc3+ {[%clk
00:52:37]} {[%emt 00:01:30]} 13. bxc3 {[%clk 00:33:13]} {[%emt 00:05:20]} Nf6
{[%clk 00:53:00]} {[%emt 00:00:07]} 14. Qc2 {[%clk 00:25:27]} {[%emt 00:08:16]}
Qe7 {[%clk 00:51:44]} {[%emt 00:01:45]} 15. c4 {[%clk 00:24:50]} {[%emt
00:01:08]} dxc4 {[%clk 00:49:32]} {[%emt 00:02:41]} 16. Bxc4 {[%clk 00:24:54]}
{[%emt 00:00:27]} Be6 {[%clk 00:49:48]} {[%emt 00:00:14]} 17. Bxe6 {[%clk
00:20:33]} {[%emt 00:04:51]} Qxe6 {[%clk 00:49:58]} {[%emt 00:00:20]} 18. Nf4
{[%clk 00:20:54]} {[%emt 00:00:09]} Qe7 {[%clk 00:48:13]} {[%emt 00:02:16]} 19.
Qb3 {[%clk 00:13:55]} {[%emt 00:07:28]} Qd7 {[%clk 00:44:19]} {[%emt 00:04:24]}
20. Rb1 {[%clk 00:10:55]} {[%emt 00:03:31]} b6 {[%clk 00:42:26]} {[%emt
00:02:23]} 21. O-O {[%clk 00:08:10]} {[%emt 00:03:14]} O-O {[%clk 00:42:38]}
{[%emt 00:00:18]} 22. Rfd1 {[%clk 00:06:34]} {[%emt 00:02:06]} Rfd8 {[%clk
00:42:47]} {[%emt 00:00:21]} 23. Rbc1 {[%clk 00:05:39]} {[%emt 00:01:25]} Rac8
{[%clk 00:42:02]} {[%emt 00:01:15]} 24. f3 {[%clk 00:05:15]} {[%emt 00:00:54]}
Nd5 {[%clk 00:35:53]} {[%emt 00:06:39]} 25. Ne2 {[%clk 00:03:07]} {[%emt
00:02:38]} Ne7 {[%clk 00:30:31]} {[%emt 00:05:51]} 26. e4 {[%clk 00:03:17]}
{[%emt 00:00:20]} Qe6 {[%clk 00:29:57]} {[%emt 00:01:04]} 27. Qb2 {[%clk
00:00:43]} {[%emt 00:03:04]} g5 {[%clk 00:29:52]} {[%emt 00:00:34]} 28. g4
{[%clk 00:00:45]} {[%emt 00:00:28]} Qd6 {[%clk 00:28:20]} {[%emt 00:02:02]} 29.
Kf2 {[%clk 00:00:38]} {[%emt 00:00:37]} Qf6 {[%clk 00:27:24]} {[%emt 00:01:26]}
30. Qb3 {[%clk 00:30:35]} {[%emt 00:00:33]} c5 {[%clk 00:56:39]} {[%emt
00:01:15]} 31. d5 {[%clk 00:22:57]} {[%emt 00:08:08]} Ng6 {[%clk 00:56:33]}
{[%emt 00:00:36]} 32. Ng3 {[%clk 00:18:09]} {[%emt 00:05:19]} Nf4 {[%clk
00:53:55]} {[%emt 00:03:07]} 33. Nf5 {[%clk 00:13:49]} {[%emt 00:04:51]} h5
{[%clk 00:53:09]} {[%emt 00:01:17]} 34. gxh5 {[%clk 00:08:17]} {[%emt
00:06:02]} Kh7 {[%clk 00:50:11]} {[%emt 00:03:28]} 35. Qc3 {[%clk 00:04:16]}
{[%emt 00:04:32]} Qxc3 {[%clk 00:50:28]} {[%emt 00:00:13]} 36. Rxc3 {[%clk
00:04:44]} {[%emt 00:00:02]} Rd7 {[%clk 00:49:41]} {[%emt 00:01:17]} 37. g3
{[%clk 00:03:46]} {[%emt 00:01:28]} Ne6 {[%clk 00:49:08]} {[%emt 00:01:03]} 38.
e5 {[%clk 00:01:44]} {[%emt 00:02:33]} Nc7 {[%clk 00:49:03]} {[%emt 00:00:34]}
39. d6 {[%clk 00:01:25]} {[%emt 00:00:49]} Ne6 {[%clk 00:48:56]} {[%emt
00:00:36]} 40. Ne7 {[%clk 00:01:12]} {[%emt 00:00:44]} Rb8 {[%clk 00:48:37]}
{[%emt 00:00:49]} 41. Nd5 {[%clk 00:01:32]} {[%emt 00:00:10]} Rdd8 {[%clk
00:48:25]} {[%emt 00:00:41]} 42. f4 {[%clk 00:01:18]} {[%emt 00:00:44]} g4
{[%clk 00:48:01]} {[%emt 00:00:54]} 43. Ke3 {[%clk 00:01:25]} {[%emt 00:00:23]}
b5 {[%clk 00:48:04]} {[%emt 00:00:28]} 44. f5 {[%clk 00:01:03]} {[%emt
00:00:52]} Nd4 {[%clk 00:48:27]} {[%emt 00:00:07]} 45. Rxd4 {[%emt 00:00:19]}
cxd4+ 46. Kxd4 1-0

[Event "Paul Keres Memorial Festival 2022"]
[Site "Pärnu, Estonia Resort Hotel & Spa"]
[Date "2022.07.22"]
[Round "9.4"]
[White "Paikens, Reinis"]
[Black "Valdats, Reinis"]
[Result "0-1"]
[TimeControl "60 min for 30 moves + 30 min until game end, from first move every move 30 sec time increment"]
[WhiteFideId "11624078"]
[BlackFideId "11617578"]
[WhiteElo "1567"]
[BlackElo "1514"]

1. c4 {[%clk 01:00:57]} {[%emt 00:00:03]} e5 {[%clk 01:00:54]} {[%emt
00:00:05]} 2. Nc3 {[%clk 00:59:32]} {[%emt 00:01:57]} Bb4 {[%clk 01:01:10]}
{[%emt 00:00:12]} 3. g3 {[%clk 00:59:55]} {[%emt 00:00:08]} Nf6 {[%clk
01:01:34]} {[%emt 00:00:05]} 4. Bg2 {[%clk 01:00:15]} {[%emt 00:00:11]} O-O
{[%clk 01:01:54]} {[%emt 00:00:08]} 5. Nf3 {[%clk 01:00:33]} {[%emt 00:00:13]}
Nc6 {[%clk 01:02:16]} {[%emt 00:00:08]} 6. O-O {[%clk 01:00:54]} {[%emt
00:00:10]} e4 {[%clk 00:59:38]} {[%emt 00:03:07]} 7. Ng5 {[%clk 00:58:10]}
{[%emt 00:03:13]} Bxc3 {[%clk 00:59:52]} {[%emt 00:00:18]} 8. bxc3 {[%clk
00:58:23]} {[%emt 00:00:18]} Re8 {[%clk 01:00:17]} {[%emt 00:00:04]} 9. d3
{[%clk 00:58:14]} {[%emt 00:00:40]} exd3 {[%clk 00:47:06]} {[%emt 00:13:41]} 10.
exd3 {[%clk 00:58:25]} {[%emt 00:00:19]} d6 {[%clk 00:43:57]} {[%emt 00:03:39]}
11. Ne4 {[%clk 00:58:08]} {[%emt 00:00:48]} h6 {[%clk 00:42:36]} {[%emt
00:01:51]} 12. Rb1 {[%clk 00:51:45]} {[%emt 00:06:53]} Nxe4 {[%clk 00:30:48]}
{[%emt 00:12:17]} 13. Bxe4 {[%clk 00:52:00]} {[%emt 00:00:15]} Ne5 {[%clk
00:30:12]} {[%emt 00:01:06]} 14. Re1 {[%clk 00:47:48]} {[%emt 00:04:41]} Bg4
{[%clk 00:28:54]} {[%emt 00:01:47]} 15. Qd2 {[%clk 00:44:38]} {[%emt 00:03:42]}
Bf3 {[%clk 00:24:42]} {[%emt 00:04:41]} 16. Qc2 {[%clk 00:41:55]} {[%emt
00:03:14]} Qd7 {[%clk 00:22:55]} {[%emt 00:02:16]} 17. Re3 {[%clk 00:33:44]}
{[%emt 00:08:42]} Qh3 {[%clk 00:22:38]} {[%emt 00:00:46]} 18. Bxf3 {[%clk
00:31:52]} {[%emt 00:02:23]} Nxf3+ {[%clk 00:22:59]} {[%emt 00:00:09]} 19. Rxf3
{[%clk 00:32:15]} {[%emt 00:00:08]} Re1# {[%clk 00:23:24]} {[%emt 00:00:05]}
0-1